bitfinex/quotes_BTCUSD_20251019
["timestamp","ask_amount","ask_price","bid_price","bid_amount"]
[1760852815064,0.82668908,107180.0,107170.0,0.00075807]
[1760852815271,0.84415347,107180.0,107170.0,0.00075807]
[1760852816477,0.82951206,107180.0,107170.0,0.00075807]
[1760852818942,0.84415323,107180.0,107170.0,0.00075807]
[1760852819417,0.876012,107180.0,107170.0,0.00075807]
[1760852819616,0.90569896,107180.0,107170.0,0.00075807]
[1760852820180,0.87384019,107180.0,107170.0,0.00075807]
[1760852820621,0.7840068,107160.0,107150.0,0.0002]
[1760852820773,0.80147119,107160.0,107150.0,0.0002]
[1760852821225,0.64997223,107160.0,107150.0,0.0002]
[1760852823017,0.4981689,107160.0,107150.0,0.0002]
[1760852824891,0.30997223,107160.0,107150.0,0.0002]
[1760852825102,0.34774231,107160.0,107150.0,0.0002]
[1760852826301,0.34774231,107160.0,107150.0,0.00091632]
[1760852827161,0.68774231,107160.0,107150.0,0.00091632]
[1760852827661,0.67310023,107160.0,107150.0,0.00091632]
[1760852828416,0.68774239,107160.0,107150.0,0.00091632]
[1760852829269,0.87437919,107160.0,107150.0,0.00091632]
[1760852833267,0.87438303,107160.0,107150.0,0.00091632]
[1760852838406,0.87438091,107160.0,107150.0,0.00091632]
[1760852844439,0.68774411,107160.0,107150.0,0.00091632]
[1760852846302,0.67310195,107160.0,107150.0,0.00091632]
[1760852848810,0.68774447,107160.0,107150.0,0.00091632]
[1760852850629,0.66887557,107160.0,107150.0,0.00091632]
[1760852854523,0.65423305,107160.0,107150.0,0.00091632]
[1760852856325,0.66887474,107160.0,107150.0,0.00091632]
[1760852864612,0.69695215,107160.0,107150.0,0.00091632]
[1760852865422,0.68231046,107160.0,107150.0,0.00091632]
[1760852868535,0.69695258,107160.0,107150.0,0.00091632]
[1760852871306,0.88358938,107160.0,107150.0,0.00091632]
[1760852871712,0.69695258,107160.0,107150.0,0.00091632]
[1760852873004,0.69696006,107160.0,107150.0,0.00091632]
[1760852874974,0.68231794,107160.0,107150.0,0.00091632]
[1760852877859,0.69696004,107160.0,107150.0,0.00091632]
[1760852879894,0.88359684,107160.0,107150.0,0.00091632]
[1760852882120,0.69696004,107160.0,107150.0,0.00091632]
[1760852886244,0.69696379,107160.0,107150.0,0.00091632]
[1760852886939,0.66888638,107160.0,107150.0,0.00091632]
[1760852896372,0.65424428,107160.0,107150.0,0.00091632]
[1760852900290,0.63676694,107160.0,107150.0,0.00091632]
[1760852900466,0.65423569,107160.0,107150.0,0.00091632]
[1760852902585,0.68231249,107160.0,107150.0,0.00091632]
[1760852909323,0.86894929,107160.0,107150.0,0.00091632]
[1760852913149,0.68231249,107160.0,107150.0,0.00091632]
[1760852913349,0.68231581,107160.0,107150.0,0.00091632]
[1760852914469,0.86895261,107160.0,107150.0,0.00091632]
[1760852919219,0.68231581,107160.0,107150.0,0.00091632]
[1760852924912,0.69695819,107160.0,107150.0,0.00091632]
[1760852927038,0.88359499,107160.0,107150.0,0.00091632]
[1760852929809,0.25737,107150.0,107130.0,0.00386722]
[1760852929978,0.01747207,107150.0,107130.0,0.00386722]
[1760852930384,0.04555116,107150.0,107130.0,0.00012348]
[1760852930908,0.04555116,107150.0,107130.0,0.00027303]
[1760852931112,0.206974,107150.0,107130.0,0.00027303]
[1760852931436,0.01627001,107150.0,107130.0,0.00027303]
[1760852931625,0.00162692,107150.0,107130.0,0.00027303]
[1760852931825,0.00162692,107150.0,107130.0,0.02835212]
[1760852932025,0.34162692,107150.0,107130.0,0.02835212]
[1760852934865,0.35626969,107150.0,107130.0,0.02835212]
[1760852935435,0.35626969,107150.0,107140.0,0.00035822]
[1760852938839,0.56324369,107150.0,107140.0,0.00035822]
[1760852939270,0.59132278,107150.0,107140.0,0.00035822]
[1760852940234,0.56324369,107150.0,107140.0,0.00035822]
[1760852940930,0.206974,107150.0,107140.0,0.00035822]
[1760852941129,0.20860095,107150.0,107140.0,0.00035822]
[1760852943136,0.56607765,107150.0,107140.0,0.00035822]
[1760852943489,0.54860095,107150.0,107140.0,0.00035822]
[1760852943695,0.56607757,107150.0,107140.0,0.00035822]
[1760852946739,0.58072049,107150.0,107140.0,0.00035822]
[1760852950705,0.37374649,107150.0,107140.0,0.00035822]
[1760852951366,0.37374649,107150.0,107140.0,0.02843529]
[1760852954456,0.35910357,107150.0,107140.0,0.02843529]
[1760852958134,0.01747662,107150.0,107140.0,0.02843529]
[1760852958312,0.01910347,107150.0,107140.0,0.02843529]
[1760852960542,0.01910347,107150.0,107140.0,0.02867129]
[1760852963357,0.01909516,107150.0,107140.0,0.02867129]
[1760852968946,0.03373697,107150.0,107140.0,0.02867129]
[1760852973528,0.03373795,107150.0,107140.0,0.02867129]
[1760852974709,0.01909614,107150.0,107140.0,0.02867129]
[1760852976346,0.01909614,107150.0,107140.0,0.00059422]
[1760852976959,0.01909923,107150.0,107140.0,0.00059422]
[1760852977756,0.03374154,107150.0,107140.0,0.00059422]
[1760852984691,0.01909923,107150.0,107140.0,0.00059422]
[1760852987837,0.03374179,107150.0,107140.0,0.00059422]
[1760852993279,0.03374957,107150.0,107140.0,0.00059422]
[1760852994798,0.24072357,107150.0,107140.0,0.00059422]
[1760852995004,0.22608101,107150.0,107140.0,0.00059422]
[1760852995739,0.2541601,107150.0,107140.0,0.00059422]
[1760852996180,0.25415603,107150.0,107140.0,0.00059422]
[1760852997169,0.2322094,107150.0,107140.0,0.00059422]
[1760852997430,0.23383634,107150.0,107140.0,0.00059422]
[1760853005109,5.23383634,107150.0,107140.0,0.00059422]
[1760853007651,5.24848008,107150.0,107140.0,0.00059422]
[1760853014604,5.23383634,107150.0,107140.0,0.00059422]
[1760853016505,5.23382401,107150.0,107140.0,0.00059422]
[1760853017577,5.24846775,107150.0,107140.0,0.00059422]
[1760853019701,0.06181353,107150.0,107140.0,0.00059422]
[1760853019921,0.03373444,107150.0,107140.0,0.00059422]
[1760853020308,5.53373444,107150.0,107140.0,0.00059422]
[1760853020554,5.03373444,107150.0,107140.0,0.00059422]
[1760853021606,5.06181419,107150.0,107140.0,0.00059422]
[1760853024899,5.04717045,107150.0,107140.0,0.00059422]
[1760853027977,5.06181403,107150.0,107140.0,0.00059422]
[1760853030449,4.86213297,107150.0,107140.0,0.00059422]
[1760853030658,5.54435036,107150.0,107140.0,0.00059422]
[1760853030879,5.04435036,107150.0,107140.0,0.00059422]
[1760853034403,5.02970678,107150.0,107140.0,0.00059422]
[1760853037153,5.04435078,107150.0,107140.0,0.00059422]
[1760853044304,5.231005,107150.0,107140.0,0.00059422]
[1760853044656,5.216361,107150.0,107140.0,0.00059422]
[1760853046183,5.02970678,107150.0,107140.0,0.00059422]
[1760853047598,5.04435078,107150.0,107140.0,0.00059422]
[1760853054553,5.02970678,107150.0,107140.0,0.00059422]
[1760853055151,5.216361,107150.0,107140.0,0.00059422]
[1760853055392,0.02970678,107150.0,107140.0,0.00059422]
[1760853056248,0.216361,107150.0,107140.0,0.00059422]
[1760853056958,0.02970678,107150.0,107140.0,0.00059422]
[1760853057726,0.04435028,107150.0,107140.0,0.00059422]
[1760853060053,0.01627053,107150.0,107140.0,0.00059422]
[1760853062321,0.01627053,107150.0,107140.0,0.02867116]
[1760853064706,0.00162703,107150.0,107140.0,0.02867116]
[1760853066924,0.34162703,107150.0,107140.0,0.02867116]
[1760853067774,0.35626985,107150.0,107140.0,0.02867116]
[1760853067954,0.01626985,107150.0,107140.0,0.02867116]
[1760853069667,0.03374367,107150.0,107140.0,0.02867116]
[1760853071577,0.03374367,107150.0,107140.0,0.00059422]
[1760853073390,5.56039789,107150.0,107140.0,0.00059422]
[1760853074927,5.54575507,107150.0,107140.0,0.00059422]
[1760853075348,5.34899204,107150.0,107140.0,0.00059422]
[1760853075551,5.34162702,107150.0,107140.0,0.00059422]
[1760853076160,5.52828124,107150.0,107140.0,0.00059422]
[1760853076664,5.55636007,107150.0,107140.0,0.00059422]
[1760853077659,5.57100388,107150.0,107140.0,0.00059422]
[1760853081343,5.60069084,107150.0,107140.0,0.00059422]
[1760853083026,5.59906382,107150.0,107140.0,0.00059422]
[1760853084722,5.58442001,107150.0,107140.0,0.00059422]
[1760853085074,5.67882643,107150.0,107140.0,0.00059422]
[1760853085278,5.52667164,107140.0,107130.0,0.00027303]
[1760853085446,5.55632958,107140.0,107130.0,0.00027303]
[1760853085758,5.55632958,107140.0,107130.0,0.0006313]
[1760853085954,5.56170193,107140.0,107130.0,0.0006313]
[1760853086918,5.57634841,107140.0,107130.0,0.0006313]
[1760853087323,5.59379121,107140.0,107130.0,0.0006313]
[1760853094553,5.52668906,107130.0,107120.0,0.0004]
[1760853094847,5.57377529,107130.0,107120.0,0.00044964]
[1760853095265,5.5775206,107130.0,107120.0,0.00044964]
[1760853095737,5.55991002,107130.0,107120.0,0.00044964]
[1760853097174,5.55987328,107130.0,107120.0,0.00044964]
[1760853097896,5.57452176,107130.0,107120.0,0.00044964]
[1760853098079,5.57451954,107130.0,107120.0,0.00044964]
[1760853098298,5.54487611,107130.0,107120.0,0.00044964]
[1760853099146,5.57450502,107130.0,107120.0,0.00044964]
[1760853100107,5.57450502,107130.0,107120.0,0.00080797]
[1760853101053,5.54487611,107130.0,107120.0,0.00080797]
[1760853101649,5.54650302,107130.0,107120.0,0.00080797]
[1760853104101,5.53185454,107130.0,107120.0,0.00080797]
[1760853106071,5.53097008,107130.0,107120.0,0.00080797]
[1760853107126,5.54561789,107130.0,107120.0,0.00080797]
[1760853108221,5.5752468,107130.0,107120.0,0.00080797]
[1760853113951,5.56059899,107130.0,107120.0,0.00080797]
[1760853117078,5.57524648,107130.0,107120.0,0.00080797]
[1760853120168,5.57356072,107130.0,107120.0,0.00080797]
[1760853120695,5.25374152,107130.0,107120.0,0.00080797]
[1760853122673,5.59374152,107130.0,107120.0,0.00080797]
[1760853124352,5.57909403,107130.0,107120.0,0.00080797]
[1760853127579,5.59374186,107130.0,107120.0,0.00080797]
[1760853136622,5.57909403,107130.0,107120.0,0.00080797]
[1760853139352,5.59374186,107130.0,107120.0,0.00080797]
[1760853144425,5.57909403,107130.0,107120.0,0.00080797]
[1760853147421,5.59374219,107130.0,107120.0,0.00080797]
[1760853147662,5.59381128,107130.0,107120.0,0.00080797]
[1760853151521,5.41383582,107130.0,107120.0,0.00080797]
[1760853153582,0.34,107120.0,107110.0,0.0002]
[1760853153786,5.34674846,107110.0,107100.0,0.0002]
[1760853154000,5.3938503,107110.0,107100.0,0.0002]
[1760853154462,5.39547832,107110.0,107100.0,0.0002]
[1760853154678,5.3938503,107110.0,107100.0,0.0002]
[1760853154873,5.41675317,107110.0,107100.0,0.0002]
[1760853156537,5.38712426,107110.0,107100.0,0.0002]
[1760853156916,5.38875227,107110.0,107100.0,0.0002]
[1760853157423,5.40340317,107110.0,107100.0,0.0002]
[1760853158121,5.40336431,107110.0,107100.0,0.0002]
[1760853161533,5.19373752,107110.0,107100.0,0.0002]
[1760853161736,5.19373752,107110.0,107100.0,0.00091681]
[1760853164590,5.17908662,107110.0,107100.0,0.00091681]
[1760853165671,5.36581054,107110.0,107100.0,0.00091681]
[1760853166037,5.17908662,107110.0,107100.0,0.00091681]
[1760853167552,5.19373693,107110.0,107100.0,0.00091681]
[1760853169346,5.38046085,107110.0,107100.0,0.00091681]
[1760853170596,5.41008976,107110.0,107100.0,0.00091681]
[1760853170872,5.22556667,107110.0,107100.0,0.00091681]
[1760853172903,5.22931246,107110.0,107100.0,0.00091681]
[1760853175972,5.21466215,107110.0,107100.0,0.00091681]
[1760853177032,5.02793823,107110.0,107100.0,0.00091681]
[1760853177231,4.99456353,107110.0,107100.0,0.00091681]
[1760853177475,5.18128745,107110.0,107100.0,0.00091681]
[1760853178877,5.21481906,107110.0,107100.0,0.00091681]
[1760853183565,5.26117781,107110.0,107100.0,0.00091681]
[1760853183766,5.24652731,107110.0,107100.0,0.00091681]
[1760853184251,0.5267588,107090.0,107080.0,0.00028]
[1760853184409,5.17969432,107090.0,107080.0,0.00032984]
[1760853185615,4.99293552,107090.0,107080.0,0.00032984]
[1760853185827,5.17969432,107090.0,107080.0,0.00032984]
[1760853187002,5.20932323,107090.0,107080.0,0.00032984]
[1760853187211,5.22397573,107090.0,107080.0,0.00032984]
[1760853187462,5.2256039,107090.0,107080.0,0.00032984]
[1760853188332,5.25370064,107090.0,107080.0,0.00032984]
[1760853192617,5.06694184,107090.0,107080.0,0.00032984]
[1760853193250,5.25370064,107090.0,107080.0,0.00032984]
[1760853194036,5.23904814,107090.0,107080.0,0.00032984]
[1760853194987,5.23904814,107090.0,107080.0,0.00104686]
[1760853197245,5.25370068,107090.0,107080.0,0.00104686]
[1760853200542,5.22407177,107090.0,107080.0,0.00104686]
[1760853204147,5.23340971,107090.0,107050.0,0.02771542]
[1760853204322,0.34,107070.0,107050.0,0.02776526]
[1760853204902,0.34162819,107070.0,107050.0,0.02776526]
[1760853205101,0.3869389,107070.0,107050.0,0.02776526]
[1760853205343,0.0469389,107070.0,107050.0,0.02776526]
[1760853206616,0.23201488,107080.0,107050.0,0.02776526]
[1760853207060,0.00162819,107070.0,107050.0,0.02776526]
[1760853209822,0.00162819,107070.0,107060.0,0.00071722]
[1760853210770,0.34162819,107070.0,107060.0,0.00071722]
[1760853211150,0.00162819,107070.0,107060.0,0.00071722]
[1760853216216,0.34162819,107070.0,107060.0,0.00071722]
[1760853217548,0.35628169,107070.0,107060.0,0.00071722]
[1760853218754,0.37373616,107070.0,107060.0,0.00071722]
[1760853222413,0.18857407,107070.0,107060.0,0.00071722]
[1760853222636,0.19020226,107070.0,107060.0,0.00071722]
[1760853223303,0.00162819,107070.0,107060.0,0.00071722]
[1760853223521,5.0,107080.0,107060.0,0.00071722]
[1760853223730,5.0,107070.0,107050.0,4.984e-05]
[1760853224635,0.34,107070.0,107050.0,4.984e-05]
[1760853225038,0.34,107070.0,107060.0,0.00071722]
[1760853225487,0.3416282,107070.0,107060.0,0.00071722]
[1760853225897,0.34,107070.0,107060.0,0.00071722]
[1760853226401,0.3416282,107070.0,107060.0,0.00071722]
[1760853227770,0.34,107070.0,107040.0,0.02743794]
[1760853227971,0.34,107070.0,107040.0,0.02793574]
[1760853228202,0.52679443,107070.0,107040.0,0.02793574]
[1760853228425,0.52679443,107070.0,107040.0,0.0004978]
[1760853228821,0.52842278,107070.0,107040.0,0.0004978]
[1760853229136,0.00162835,107070.0,107040.0,0.0004978]
[1760853229295,0.34162835,107070.0,107040.0,0.0004978]
[1760853229938,0.34162835,107070.0,107040.0,0.02859985]
[1760853231621,0.34,107050.0,107040.0,0.02859985]
[1760853232255,0.35628304,107050.0,107040.0,0.02859985]
[1760853232898,0.01628304,107050.0,107040.0,0.02859985]
[1760853233115,0.01465472,107050.0,107040.0,0.02859985]
[1760853233861,0.34,107070.0,107040.0,0.02859985]
[1760853234034,0.34,107050.0,107040.0,0.02859985]
[1760853235476,0.00162831,107050.0,107040.0,0.02859985]
[1760853237252,0.00162831,107050.0,107040.0,0.02931727]
[1760853238083,0.01628268,107050.0,107040.0,0.02931727]
[1760853238491,0.00162831,107050.0,107040.0,0.02931727]
[1760853241343,0.01628174,107050.0,107040.0,0.02931727]
[1760853241756,0.01628174,107050.0,107040.0,0.04800187]
[1760853243872,0.00162831,107050.0,107040.0,0.04800187]
[1760853244231,0.00162831,107050.0,107040.0,0.08418415]
[1760853244870,0.00162831,107050.0,107040.0,0.06549955]
[1760853245206,0.00162831,107050.0,107040.0,0.23148415]
[1760853245408,0.00162831,107050.0,107040.0,0.39964558]
[1760853245611,0.03874959,107080.0,107050.0,0.03618228]
[1760853245814,0.0561913,107080.0,107050.0,0.27720228]
[1760853246188,0.0561913,107080.0,107060.0,0.02809468]
[1760853246794,0.0561913,107080.0,107060.0,0.04677579]
[1760853246989,0.03874959,107080.0,107060.0,0.04677579]
[1760853247392,0.03874959,107080.0,107060.0,0.01868111]
[1760853247569,0.03874959,107080.0,107070.0,0.0280931]
[1760853248148,0.04037766,107080.0,107070.0,0.0280931]
[1760853248878,0.05502882,107080.0,107070.0,0.0280931]
[1760853251195,0.05340075,107080.0,107070.0,0.0280931]
[1760853254071,0.05502884,107080.0,107070.0,0.0280931]
[1760853254615,0.04037768,107080.0,107070.0,0.0280931]
[1760853266304,0.04037768,107080.0,107070.0,0.15803538]
[1760853266695,0.04037768,107080.0,107070.0,0.17671474]
[1760853266901,0.03874959,107080.0,107070.0,0.17671474]
[1760853267548,0.04408184,107080.0,107070.0,0.17671474]
[1760853267677,0.0157602,107080.0,107070.0,0.17671474]
[1760853269448,0.01738817,107080.0,107070.0,0.17671474]
[1760853269870,0.05553423,107080.0,107070.0,0.17671474]
[1760853270139,0.01738817,107080.0,107070.0,0.17671474]
[1760853270557,0.01738817,107080.0,107070.0,0.36350842]
[1760853270836,0.01738817,107080.0,107070.0,0.34482906]
[1760853273964,0.01738817,107080.0,107070.0,0.49212906]
[1760853274162,0.01738817,107080.0,107070.0,0.50212905]
[1760853276096,0.00273812,107080.0,107070.0,0.50212905]
[1760853278324,0.00273812,107080.0,107070.0,0.90746858]
[1760853278799,0.00273812,107080.0,107070.0,0.45923993]
[1760853280154,0.01738563,107080.0,107070.0,0.45923993]
[1760853282752,0.01738563,107080.0,107070.0,0.60653993]
[1760853283608,0.01738563,107080.0,107070.0,0.55653993]
[1760853283823,0.01738563,107080.0,107070.0,0.57034608]
[1760853284739,0.00273812,107080.0,107070.0,0.57034608]
[1760853285480,0.00273812,107080.0,107070.0,0.60652836]
[1760853287666,0.01738575,107080.0,107070.0,0.60652836]
[1760853288273,0.01738575,107080.0,107070.0,1.05475701]
[1760853288872,0.22315796,107150.0,107090.0,0.23227622]
[1760853289109,5.0,107140.0,107100.0,0.11239413]
[1760853289314,5.0,107130.0,107100.0,0.11239413]
[1760853289578,0.05457792,107130.0,107110.0,0.02808153]
[1760853289994,0.05472709,107130.0,107110.0,0.02808153]
[1760853290915,0.39472599,107130.0,107110.0,0.02808153]
[1760853292006,0.39635373,107130.0,107110.0,0.02808153]
[1760853293258,0.05635373,107130.0,107110.0,0.02808153]
[1760853293427,0.39635373,107130.0,107110.0,0.02808153]
[1760853294915,0.39635373,107130.0,107110.0,0.04675392]
[1760853295119,0.00143356,107120.0,107110.0,0.04675392]
[1760853295778,0.01607965,107120.0,107110.0,0.04675392]
[1760853297359,0.00143356,107120.0,107110.0,0.04675392]
[1760853298607,0.00143356,107120.0,107110.0,0.01867239]
[1760853300290,0.01607977,107120.0,107110.0,0.01867239]
[1760853300559,0.01607977,107120.0,107100.0,0.02808156]
[1760853300764,0.03208167,107120.0,107080.0,0.1473]
[1760853300994,0.03208167,107120.0,107090.0,0.04676196]
[1760853301211,0.03208167,107120.0,107090.0,0.24285801]
[1760853301432,0.01464621,107120.0,107100.0,0.09372]
[1760853301651,0.01464621,107120.0,107100.0,0.09376]
[1760853301870,5.0,107140.0,107100.0,0.02808156]
[1760853302082,5.01743901,107140.0,107100.0,0.02823073]
[1760853302300,5.0,107130.0,107100.0,0.02823073]
[1760853302488,0.01743901,107130.0,107100.0,0.02823073]
[1760853302622,5.0,107140.0,107100.0,0.02823073]
[1760853302838,5.0,107130.0,107100.0,0.02823073]
[1760853303076,5.0,107120.0,107100.0,0.00014917]
[1760853303269,0.01743901,107120.0,107100.0,0.00014917]
[1760853303674,0.35743901,107120.0,107100.0,0.00014917]
[1760853303931,0.01906681,107120.0,107100.0,0.00014917]
[1760853304356,0.34,107110.0,107100.0,0.00014917]
[1760853305995,0.34107527,107110.0,107100.0,0.00014917]
[1760853307799,0.35572341,107110.0,107100.0,0.00014917]
[1760853311195,0.35572341,107110.0,107080.0,0.02660792]
[1760853311434,0.35479756,107110.0,107080.0,0.04528554]
[1760853311636,0.34,107100.0,107080.0,0.02660792]
[1760853311799,0.34,107100.0,107080.0,0.01867762]
[1760853312245,0.3416279,107100.0,107080.0,0.01867762]
[1760853312828,0.0016279,107100.0,107080.0,0.01867762]
[1760853315180,0.0016279,107100.0,107080.0,0.01704979]
[1760853315340,0.00325583,107100.0,107080.0,0.01704979]
[1760853316606,0.00035849,107090.0,107080.0,0.01704979]
[1760853318838,0.01500768,107090.0,107080.0,0.01704979]
[1760853319861,0.01500768,107090.0,107070.0,0.04514137]
[1760853320200,0.01500768,107090.0,107070.0,0.13890137]
[1760853320650,0.01500768,107090.0,107070.0,0.04514137]
[1760853321763,0.01663559,107090.0,107070.0,0.13890137]
[1760853322007,0.01663559,107090.0,107070.0,0.04514137]
[1760853322714,0.01663559,107090.0,107070.0,0.13890137]
[1760853322879,0.01663559,107090.0,107070.0,0.04514137]
[1760853323304,0.01663559,107090.0,107070.0,0.13890137]
[1760853323557,0.01663559,107090.0,107070.0,0.04514137]
[1760853323768,0.01663559,107090.0,107070.0,0.13890137]
[1760853324774,0.0019864,107090.0,107070.0,0.13890137]
[1760853324992,0.00035849,107090.0,107070.0,0.13890137]
[1760853325789,0.00198641,107090.0,107070.0,0.13890137]
[1760853327868,0.01663568,107090.0,107070.0,0.13890137]
[1760853329108,0.01663568,107090.0,107070.0,0.04514137]
[1760853329354,0.01663568,107090.0,107070.0,0.02808984]
[1760853329537,0.01826361,107090.0,107070.0,0.02808984]
[1760853330983,5.0,107100.0,107070.0,0.02808984]
[1760853331206,0.01465041,107090.0,107070.0,0.02808984]
[1760853332652,0.01465041,107090.0,107060.0,0.24217025]
[1760853332870,0.01465041,107090.0,107070.0,0.01867936]
[1760853333334,0.01627842,107090.0,107070.0,0.01867936]
[1760853333586,0.00162801,107090.0,107070.0,0.01867936]
[1760853334700,0.00162801,107090.0,107080.0,0.02808845]
[1760853338082,0.01627709,107090.0,107080.0,0.02808845]
[1760853339238,0.01627709,107090.0,107060.0,0.27835253]
[1760853339386,0.01627709,107090.0,107070.0,0.02808942]
[1760853340696,0.01627709,107090.0,107070.0,0.04676878]
[1760853342535,0.01627709,107090.0,107070.0,0.02808942]
[1760853342736,0.01627709,107090.0,107070.0,0.04676878]
[1760853346787,0.00162801,107090.0,107070.0,0.04676878]
[1760853349672,0.01627727,107090.0,107070.0,0.04676878]
[1760853355879,0.00162801,107090.0,107070.0,0.04676878]
[1760853360055,0.01627803,107090.0,107070.0,0.04676878]
[1760853364483,0.01627803,107090.0,107070.0,0.02808942]
[1760853364685,0.00162801,107090.0,107070.0,0.02808942]
[1760853365360,0.53621752,107110.0,107070.0,0.02808942]
[1760853365571,0.34,107100.0,107070.0,0.02808942]
[1760853365787,0.35745791,107100.0,107070.0,0.02808942]
[1760853367605,0.03210837,107100.0,107070.0,0.04676878]
[1760853367827,0.0337364,107100.0,107070.0,0.04676878]
[1760853368398,0.0337364,107100.0,107070.0,0.01867936]
[1760853374712,0.01908594,107100.0,107070.0,0.01867936]
[1760853376323,0.00162803,107100.0,107070.0,0.01867936]
[1760853376503,0.01908696,107100.0,107070.0,0.01867936]
[1760853378364,0.01908696,107100.0,107070.0,0.21481216]
[1760853378560,0.00162803,107100.0,107070.0,0.00933968]
[1760853378735,0.00162803,107100.0,107080.0,0.02808716]
[1760853379115,0.01479922,107110.0,107080.0,0.02808716]
[1760853379116,0.03742161,107130.0,107080.0,0.02808716]
[1760853379310,0.01627662,107100.0,107080.0,0.02823658]
[1760853379522,0.03742161,107130.0,107080.0,0.02823658]
[1760853379722,5.0,107120.0,107080.0,0.02823658]
[1760853379948,0.01627679,107100.0,107080.0,0.02823658]
[1760853380088,5.0,107120.0,107080.0,0.02823658]
[1760853380293,5.0,107110.0,107080.0,0.1404702]
[1760853380490,0.01745991,107110.0,107080.0,0.1404702]
[1760853381344,0.01745991,107110.0,107080.0,0.33678751]
[1760853381547,0.01464849,107120.0,107080.0,0.31810989]
[1760853381809,0.03210335,107120.0,107080.0,0.31810989]
[1760853382216,0.03210335,107120.0,107080.0,0.29002273]
[1760853382482,0.03210335,107120.0,107090.0,0.04676141]
[1760853382941,0.03373118,107120.0,107090.0,0.04676141]
[1760853383125,0.00035844,107100.0,107090.0,0.04676141]
[1760853383736,0.01500601,107100.0,107090.0,0.04676141]
[1760853384119,0.00198629,107100.0,107090.0,0.04676141]
[1760853387269,0.01663335,107100.0,107090.0,0.04676141]
[1760853397727,0.01663335,107100.0,107080.0,0.14744942]
[1760853397903,0.01663335,107100.0,107080.0,0.16612704]
[1760853398102,0.01663335,107100.0,107080.0,0.19421346]
[1760853400772,0.01663335,107100.0,107080.0,0.28797346]
[1760853400991,0.01663335,107100.0,107080.0,0.26929584]
[1760853401199,0.00198629,107100.0,107090.0,0.01867588]
[1760853403747,0.00198629,107100.0,107080.0,0.04691346]
[1760853403951,0.01663404,107100.0,107080.0,0.04691346]
[1760853404307,0.01663404,107100.0,107080.0,0.14067346]
[1760853404507,0.00198629,107100.0,107080.0,0.14067346]
[1760853405147,0.00198629,107100.0,107080.0,0.04691346]
[1760853405749,0.00198629,107100.0,107080.0,0.14067346]
[1760853407180,0.00198629,107100.0,107080.0,0.04691346]
[1760853407573,0.00198629,107100.0,107080.0,0.14067346]
[1760853408871,0.00198629,107100.0,107080.0,0.04691346]
[1760853409195,0.01663404,107100.0,107080.0,0.04691346]
[1760853409348,0.01663404,107100.0,107080.0,0.14063346]
[1760853409550,0.01663404,107100.0,107080.0,0.04691346]
[1760853409758,0.01663404,107100.0,107080.0,0.14063346]
[1760853416252,0.01663404,107100.0,107080.0,0.2993178]
[1760853416531,0.01663404,107100.0,107080.0,0.28064018]
[1760853416708,0.01663404,107100.0,107090.0,0.0280849]
[1760853417680,0.01663404,107100.0,107090.0,0.04676078]
[1760853419326,0.01663404,107100.0,107090.0,0.0280849]
[1760853419569,0.01663404,107100.0,107090.0,0.04676078]
[1760853423261,0.01663404,107100.0,107090.0,0.26970186]
[1760853423469,0.01663404,107100.0,107090.0,0.25102598]
[1760853423670,0.00198629,107100.0,107090.0,0.25102598]
[1760853423818,0.1958592,107140.0,107090.0,0.26036392]
[1760853424036,5.0,107130.0,107100.0,0.01867413]
[1760853424230,0.01745647,107130.0,107100.0,0.01867413]
[1760853424419,0.00035839,107110.0,107100.0,0.04675622]
[1760853424633,0.00035839,107110.0,107100.0,0.14047622]
[1760853427141,0.00198606,107110.0,107100.0,0.14047622]
[1760853428772,0.01663174,107110.0,107100.0,0.14047622]
[1760853434762,0.00198606,107110.0,107100.0,0.14047622]
[1760853439045,0.01663201,107110.0,107100.0,0.14047622]
[1760853440092,0.01663201,107110.0,107100.0,0.02808209]
[1760853440301,0.01663201,107110.0,107100.0,0.12180209]
[1760853441137,0.01663201,107110.0,107100.0,0.02808209]
[1760853441341,0.01663201,107110.0,107080.0,0.0012594]
[1760853441509,0.03727763,107110.0,107080.0,0.0012594]
[1760853441705,0.03727763,107110.0,107080.0,0.02934674]
[1760853441923,0.03564996,107110.0,107080.0,0.0012594]
[1760853442139,0.05309041,107110.0,107080.0,0.0012594]
[1760853442362,0.03564996,107110.0,107080.0,0.0012594]
[1760853443436,0.01500434,107110.0,107080.0,0.0012594]
[1760853444073,0.01500434,107110.0,107080.0,0.01993702]
[1760853444496,0.01663224,107110.0,107080.0,0.01993702]
[1760853444701,0.00198629,107110.0,107080.0,0.01993702]
[1760853445159,0.00035839,107110.0,107080.0,0.01993702]
[1760853447865,0.00035839,107110.0,107080.0,0.20671323]
[1760853448070,0.00035839,107110.0,107080.0,0.1973734]
[1760853448274,0.00035839,107110.0,107080.0,0.21605102]
[1760853448685,0.00035839,107110.0,107090.0,0.02808377]
[1760853448890,0.00035839,107110.0,107090.0,0.12184377]
[1760853449088,0.4058979,107140.0,107090.0,0.12184377]
[1760853449294,5.0,107130.0,107090.0,0.12184377]
[1760853449607,0.03207349,107130.0,107090.0,0.12184377]
[1760853449980,0.03207349,107130.0,107100.0,0.01867413]
[1760853451203,0.37207349,107130.0,107100.0,0.01867413]
[1760853453141,0.38140794,107130.0,107090.0,0.12021602]
[1760853453374,0.34,107120.0,107090.0,0.09376]
[1760853455246,0.00162783,107120.0,107090.0,0.09376]
[1760853456454,0.01905342,107120.0,107090.0,0.09376]
[1760853456654,0.34,107100.0,107090.0,0.09376]
[1760853457389,0.35464819,107100.0,107090.0,0.09376]
[1760853457590,0.34162784,107100.0,107090.0,0.09376]
[1760853457870,0.00162784,107100.0,107090.0,0.09376]
[1760853460486,0.00162784,107100.0,107080.0,0.27040456]
[1760853460909,0.01627551,107100.0,107080.0,0.27040456]
[1760853464556,0.00162784,107100.0,107080.0,0.27040456]
[1760853466049,0.00162784,107100.0,107080.0,0.12310456]
[1760853468830,0.01627573,107100.0,107080.0,0.12310456]
[1760853471123,0.01627573,107100.0,107080.0,0.02934456]
[1760853472268,0.01627573,107100.0,107080.0,0.04802218]
[1760853476940,0.01627573,107100.0,107080.0,0.02934456]
[1760853478243,0.03373807,107100.0,107080.0,0.02934456]
[1760853479132,0.03373807,107100.0,107080.0,0.0012594]
[1760853480840,0.01909018,107100.0,107080.0,0.01993702]
[1760853483438,0.0337388,107100.0,107080.0,0.01993702]
[1760853486364,0.38849633,107130.0,107080.0,0.01993702]
[1760853486560,5.0,107120.0,107080.0,0.01993702]
[1760853486808,0.01627586,107100.0,107080.0,0.01993702]
[1760853487024,5.0,107120.0,107080.0,0.04802463]
[1760853487231,0.00162781,107120.0,107080.0,0.04802463]
[1760853487444,5.0,107120.0,107080.0,0.04802463]
[1760853488399,0.34,107110.0,107080.0,0.04802463]
[1760853488634,0.35464771,107120.0,107080.0,0.04802463]
[1760853489644,0.35627553,107120.0,107080.0,0.04802463]
[1760853491173,0.01627553,107120.0,107080.0,0.04802463]
[1760853491399,0.35464771,107120.0,107080.0,0.04802463]
[1760853494580,0.01627549,107120.0,107080.0,0.04802463]